{"text_format":"2","workbook":"xlsx","n_sheets":2,"sheets":["International MSc_Fulltime_A","International MSc_Fulltime_S1"],"not_rendered":{"charts":0,"images":0,"macros":0,"external_links":0,"defined_names":0,"comments":0,"pivot_tables":0},"unopened":[],"bounds":{"document_bytes":16777216,"sheet_cells":100000,"run_cost":"one","rows_first":2000,"rows_last":500,"rows_between":2000,"halvings":0,"cell_chars":16384,"cell_head_chars":4096},"cells_cut":0,"cells_raw":0,"read":"whole","date_system":"1900"}

{"sheet":"International MSc_Fulltime_A","index":0,"n_rows":95,"n_cols":21,"rows_kept":95,"cut":false,"hidden":false,"merged":[[59,4,59,5],[59,6,60,6],[59,7,59,8],[59,9,60,9],[59,10,59,11],[2,17,4,17],[59,13,59,14],[59,15,60,15],[58,10,58,12],[58,13,58,15],[59,12,60,12],[58,18,58,20],[2,0,4,0],[2,2,4,2],[2,3,4,3],[3,9,4,9],[3,4,3,5],[3,6,4,6],[2,10,2,12],[2,4,2,6],[3,10,3,11],[3,7,3,8],[3,12,4,12],[2,7,2,9],[2,18,2,20],[21,0,53,0],[0,0,0,1],[58,17,60,17],[58,0,66,0],[2,16,4,16],[2,1,4,1],[58,1,60,1],[58,2,60,2],[58,3,60,3],[58,4,58,6],[58,7,58,9],[2,13,2,15],[3,13,3,14],[3,15,4,15],[12,0,18,0],[5,0,9,0],[58,16,60,16]]}
["Last amendment: 30_03/2023",null,"updated: 30/03/2023"]
[]
["INTER-\nNATIONAL ECONOMY AND BUSINESS MSc\nFULLTIME","Code","Course name","Semester","1st semester (A)",null,null,"2nd semester (S)",null,null,"3rd semester (A)",null,null,"4th semester (S)",null,null,"Credit","Assessment","Prerequisites"]
[{"$nulls":4},"Contact hours/week",null,"Credit","Contact hours/week",null,"Credit","Contact hours/week",null,"Credit","Contact hours/week",null,"Credit"]
[{"$nulls":4},"Lec","Sem",null,"Lec","Sem",null,"Lec","Sem",null,"Lec","Sem",null,null,null,"Exam","Course","Paralell"]
["A: Economic and methodological module","20A101EN","Industrial Organization","A",2,2,5,{"$nulls":9},5,"exam"]
[null,"20A102EN","Macroeconomics","A",2,2,5,{"$nulls":9},5,"exam"]
[null,"20A103EN","Economic and Social Statistics","S",null,null,null,2,2,5,{"$nulls":6},5,"exam"]
[null,"20A119","International Political Economy","A",2,2,5,{"$nulls":9},5,"exam"]
[null,"20A108EN","International Economics","S",null,null,null,2,2,5,{"$nulls":6},5,"exam"]
[null,null,"Total",null,{"$f":"SUM(E6:E10)","v":6},6,15,4,4,10,{"$nulls":6},{"$f":"SUM(Q6:Q10)","v":25}]
[]
["B: International economy and business basic module","23B113","Modern Management and Marketing","S",null,null,null,2,2,5,{"$nulls":6},5,"exam"]
[null,"23B103EN","International Finance","S",null,null,null,2,2,5,{"$nulls":6},5,"exam"]
[null,"23B104EN","Global Economic Trends and Centres","S",null,null,null,2,2,5,{"$nulls":6},5,"exam"]
[null,"23B109","European Business Environment","A",2,2,5,{"$nulls":9},5,"exam"]
[null,"23B110","International Accounting","A",{"$nulls":6},2,2,5,null,null,null,5,"exam",null,"23B103EN"]
[null,"23B111","International Financial Management","A",{"$nulls":6},2,2,5,null,null,null,5,"exam",null,"23B103EN"]
[null,"23B112","International Human Resource Management","A",{"$nulls":6},2,2,5,null,null,null,5,"exam",null,"23B113"]
[null,null,"Total",null,{"$f":"SUM(E13:E19)","v":2},2,5,6,6,15,6,6,15,null,null,null,{"$f":"SUM(Q13:Q19)","v":35}]
[]
["C: Programme-specific  module (semi-optional)",null,"International Business and Management"]
[null,"23C128","International Strategic Management","A",{"$nulls":6},2,1,5,null,null,null,5,"exam",null,"23B113"]
[null,"23C127-1","Branding","S",{"$nulls":9},1,1,4,4,null,null,"23B113"]
[null,"23C110EN","International Negotiations and Intercultural Communication","A",1,2,5,null,null,null,1,2,5,null,null,null,5,"exam"]
[null,"23C116EN","Knowledge Management","S",{"$nulls":9},2,0,4,4,"exam",null,"23B113"]
[null,"23C117","    Legal Foundations of International Cooperation","A",1,0,3,null,null,null,1,0,3,null,null,null,3,"exam"]
[null,"23C130","Human Rights and Business","S",null,null,null,2,0,4,null,null,null,2,0,4,4,"exam"]
[null,"23C123","Research and Development in the EU","S",null,null,null,2,0,4,null,null,null,2,0,4,4,"exam"]
[null,"23C119","Business writing: in-company correspondence","A",2,0,4,null,null,null,2,0,4,null,null,null,4,"exam"]
[null,"23C120","Business Informatics","A",2,1,5,null,null,null,2,1,5,null,null,null,5,"exam"]
[null,"23C108EN","Industrial Relations and Employment Policies","S",null,null,null,2,0,4,null,null,null,2,0,4,4,"exam"]
[null,"23C118","International Trade Law","S",null,null,null,2,0,4,null,null,null,2,0,4,4,"exam"]
[null,"23C124","Mathematical Statistics","A",2,2,5,null,null,null,2,2,5,null,null,null,5,"exam"]
[null,"23C125","e-Business","A",2,null,4,null,null,null,2,null,4,null,null,null,4,"exam"]
[null,"CKV","Courses completed abroad",{"$nulls":14},"exam"]
[{"$nulls":16},{"$f":"SUM(Q23:Q35)","v":55}]
[null,null,"Finance and Accounting Module"]
[null,"23C133","Green Finance and ESG Reporting","A",{"$nulls":6},2,1,5,null,null,null,5,"exam",null,"23B103EN"]
[null,"23C134","Analysis of Economic and Financial Data","A",{"$nulls":6},0,2,4,null,null,null,4,"pcm",null,"20A103EN"]
[null,"23C126","Business processes in SAP S/4HANA","S",{"$nulls":9},0,3,4,4,"pcm",null,"23B110"]
[null,"23C132","Risk Management in Finance","S",{"$nulls":9},2,2,5,5,"exam",null,"23B111"]
[{"$nulls":16},18]
[null,null,"European Economic Studies Module"]
[null,"23C129","Energy in Europe","A",2,0,4,null,null,null,2,0,4,null,null,null,4,"exam"]
[null,"23C121","Competitiveness in the EU","A",0,2,4,null,null,null,0,2,4,null,null,null,4,"pcm"]
[null,"22B107EN","European Competition, Trade and Industrial Policies","S",null,null,null,2,1,5,{"$nulls":6},5,"exam",null,"23B109"]
[null,"23C115EN","European Economic and Monetary Union","S",null,null,null,2,0,4,{"$nulls":6},4,"exam",null,"23B109"]
[{"$nulls":16},17]
[null,null,"Global Business Studies Module"]
[null,"23C103EN","Global Marketing","A",{"$nulls":6},2,0,4,null,null,null,4,"exam",null,"23B113"]
[null,"23C131","Modern China","A",{"$nulls":6},2,0,4,null,null,null,4,"pcm",null,"23B104EN"]
[null,"23C113EN","Services and Intellectual Properties in the Global Economy","S",null,null,null,2,0,4,null,null,null,2,0,4,4,"exam"]
[null,"23C122","Internationalisation of firms","S",{"$nulls":9},2,1,5,5,"exam",null,"20A108EN"]
[{"$nulls":16},17]
[null,null,"Required credits: 37",null,{"$f":"SUM(E23:E54)","v":12},{"$f":"SUM(F23:F54)","v":7},34,14,1,29,20,11,56,17,7,42,{"$f":"Q37+Q43+Q49+Q55","v":107}]
[null,null,"Recommended",null,3,2,9,0,0,0,6,3,17,6,3,14]
[]
["D: Optional module ","Code","Course name","Semester","1st semester",null,null,"2nd semester",null,null,"3rd semester",null,null,"4th semester",null,null,"Credit","Assessment","Prerequisites"]
[{"$nulls":4},"Contact hours/week",null,"Credit","Contact hours/week",null,"Credit","Contact hours/week",null,"Credit","Contact hours/week",null,"Credit"]
[{"$nulls":4},"Lec","Sem",null,"Lec","Sem",null,"Lec","Sem",null,"Lec","Sem",null,null,null,"Exam","Course","Paralell"]
[null,"23D106","Freedom, Security and Justice within the EU","A",2,0,4,null,null,null,2,0,4,null,null,null,4,"exam"]
[null,"20D103","International Week","S",null,null,null,2,null,5,null,null,null,2,null,5,5,"exam"]
[null,"23D108","English for Academic Writing","S",{"$nulls":4},2,4,{"$nulls":4},2,4,4,"pcm"]
[null,"23D111","Hungarian Language and Culture for Beginners I-II.*","A/S",0,2,2,0,2,2,{"$nulls":6},4,"pcm"]
[null,"10B320","Geschäftskommunikations- und Präsentationstraining auf Deutsch ","A/S",null,4,4,null,4,4,null,4,4,null,4,4,4,"pcm",null,"Kommunikáció és készségfejlesztés német nyelven vagy B2 német nyelvismeret (nyelvvizsga nem szükséges)"]
[null,"DSZV","Courses completed abroad"]
[null,null,"Required credits: 8**",null,{"$f":"SUM(E62:E66)","v":2},{"$f":"SUM(F62:F66)","v":6},10,2,8,15,2,4,8,2,6,13,{"$f":"SUM(Q62:Q67)","v":21}]
[null,null,"Recommended",null,0,0,0,2,0,5,0,0,0,0,0,0]
[null,null,"* Compulsory for Stipendium Hungaricum scholarship holder students not yet in receipt of Hungarian language teaching"]
[null,null,"** The 8 credits of the optional module can be completed with taking up further courses form the C module"]
[]
[]
["Thesis module","23C501EN","Thesis seminar","S",{"$nulls":10},4,5,5,"pcm"]
[null,"23C502EN","Thesis consultation","S",{"$nulls":10},8,10,10,"pcm"]
[{"$nulls":14},{"$f":"SUM(O74:O75)","v":12},{"$f":"SUM(P74:P75)","v":15},{"$f":"SUM(Q74:Q75)","v":15}]
[]
[null,null,"Total credits",null,null,null,{"$f":"G11+G20+G57+G69+G76","v":29},null,null,{"$f":"J11+J20+J57+J69+J76","v":30},null,null,{"$f":"M11+M20+M57+M69+M76","v":32},null,null,{"$f":"P11+P20+P57+P69+P76","v":29},{"$f":"SUM(G78:P78)","v":120}]
[null,null,"Contact hours / week",null,{"$f":"E11+E20+E57+E69+E76","v":11},{"$f":"F11+F20+F57+F69+F76","v":10},null,{"$f":"H11+H20+H57+H69+H76","v":12},{"$f":"I11+I20+I57+I69+I76","v":10},null,{"$f":"K11+K20+K57+K69+K76","v":12},{"$f":"L11+L20+L57+L69+L76","v":9},null,{"$f":"N11+N20+N57+N69+N76","v":6},{"$f":"O11+O20+O57+O69+O76","v":15}]
[null,null,"Contact hours / semester (lecture, seminar)",null,{"$f":"E79*15","v":165},{"$f":"F79*15","v":150},null,{"$f":"H79*15","v":180},{"$f":"I79*15","v":150},null,{"$f":"K79*15","v":180},{"$f":"L79*15","v":135},null,{"$f":"N79*15","v":90},{"$f":"O79*15","v":225}]
[null,null,"Contact hours / semester together",null,{"$f":"E80+F80","v":315},null,null,{"$f":"H80+I80","v":330},null,null,{"$f":"K80+L80","v":315},null,null,{"$f":"N80+O80","v":315}]
[]
[]
[null,null,"Programme completion and exit requirements (credits) according to Hungarian regulations"]
[null,null,"Economic and methodological module (25-40 credits)",null,null,null,"credits"]
[null,null,"International economy and business basic module (30-45 credits)",null,null,null,25]
[null,null,"Programme-specific module (30-45 credits)",null,null,null,35]
[null,null,"Optional module (minimum 6 credits)",null,null,null,37]
[null,null,"Thesis module (15 credits)",null,null,null,8]
[null,null,"Together (120 credits)",null,null,null,15]
[{"$nulls":6},{"$f":"SUM(G86:G90)","v":120}]
[]
[null,"pcm","practical course mark (five-grade)"]
[null,"A:","Autumn"]
[null,"S:","Spring"]

{"sheet":"International MSc_Fulltime_S1","index":1,"n_rows":91,"n_cols":21,"rows_kept":91,"cut":false,"hidden":false,"merged":[[2,17,4,17],[2,18,2,20],[5,0,9,0],[12,0,18,0],[3,13,3,14],[3,15,4,15],[3,10,3,11],[3,12,4,12],[2,13,2,15],[2,10,2,12],[3,7,3,8],[3,9,4,9],[3,4,3,5],[3,6,4,6],[2,0,4,0],[2,1,4,1],[57,16,59,16],[2,16,4,16],[57,7,57,9],[57,4,57,6],[58,7,58,8],[58,9,59,9],[58,4,58,5],[58,6,59,6],[0,0,0,1],[21,0,54,0],[57,17,59,17],[57,13,57,15],[57,10,57,12],[58,15,59,15],[58,10,58,11],[58,12,59,12],[58,13,58,14],[57,2,59,2],[57,3,59,3],[57,1,59,1],[2,2,4,2],[2,3,4,3],[2,7,2,9],[2,4,2,6]]}
["Last amendment: 30_03/2023",null,"updated: 30/03/2023"]
[]
["INTER-\nNATIONAL ECONOMY AND BUSINESS MSc\nFULLTIME","Code","Course name","Semester","1st semester (S)",null,null,"2nd semester (A)",null,null,"3rd semester (S)",null,null,"4th semester (A)",null,null,"Credit","Assessment","Prerequisites"]
[{"$nulls":4},"Contact hours/week",null,"Credit","Contact hours/week",null,"Credit","Contact hours/week",null,"Credit","Contact hours/week",null,"Credit"]
[{"$nulls":4},"Lec","Sem",null,"Lec","Sem",null,"Lec","Sem",null,"Lec","Sem",null,null,null,"Exam","Course","Paralell"]
["A: Economic and methodological module","20A101EN","Industrial Organization","A",null,null,null,2,2,5,{"$nulls":6},5,"exam"]
[null,"20A102EN","Macroeconomics","A",null,null,null,2,2,5,{"$nulls":6},5,"exam"]
[null,"20A103EN","Economic and Social Statistics","S",2,2,5,{"$nulls":9},5,"exam"]
[null,"20A119","International Political Economy","A",null,null,null,2,2,5,{"$nulls":6},5,"exam"]
[null,"20A108EN","International Economics","S",2,2,5,{"$nulls":9},5,"exam"]
[null,null,"Total",null,{"$f":"SUM(E6:E10)","v":4},4,10,{"$f":"SUM(H6:H10)","v":6},{"$f":"SUM(I6:I10)","v":6},{"$f":"SUM(J6:J10)","v":15},{"$nulls":6},{"$f":"SUM(Q6:Q10)","v":25}]
[]
["B: International economy and business basic module","23B113","Modern Management and Marketing","S",2,2,5,{"$nulls":9},5,"exam"]
[null,"23B103EN","International Finance","S",2,2,5,{"$nulls":9},5,"exam"]
[null,"23B104EN","Global Economic Trends and Centres","S",2,2,5,{"$nulls":9},5,"exam"]
[null,"23B109","European Business Environment","A",null,null,null,2,2,5,{"$nulls":6},5,"exam"]
[null,"23B110","International Accounting","A",null,null,null,2,2,5,{"$nulls":6},5,"exam",null,"23B103EN"]
[null,"23B111","International Financial Management","A",null,null,null,2,2,5,{"$nulls":6},5,"exam",null,"23B103EN"]
[null,"23B112","International Human Resource Management","A",{"$nulls":9},2,2,5,5,"exam",null,"23B113"]
[null,null,"Total",null,{"$f":"SUM(E13:E19)","v":6},6,15,{"$f":"SUM(H13:H19)","v":6},{"$f":"SUM(I13:I19)","v":6},{"$f":"SUM(J13:J19)","v":15},null,null,null,{"$f":"SUM(N13:N19)","v":2},{"$f":"SUM(O13:O19)","v":2},{"$f":"SUM(P13:P19)","v":5},{"$f":"SUM(Q13:Q19)","v":35}]
[]
["C: Programme-specific  module (semi-optional)",null,"International Business and Management"]
[null,"23C128","International Strategic Management","A",{"$nulls":9},2,1,5,5,"exam",null,"23B113"]
[null,"23C127-1","Branding","S",{"$nulls":6},1,1,4,null,null,null,4,null,null,"23B113"]
[null,"23C110EN","International Negotiations and Intercultural Communication","A",null,null,null,1,2,5,null,null,null,1,2,5,5,"exam"]
[null,"23C116EN","Knowledge Management","S",{"$nulls":6},2,0,4,null,null,null,4,"exam",null,"23B113"]
[null,"23C108EN","Industrial Relations and Employment Policies","S",2,0,4,null,null,null,2,0,4,null,null,null,4,"exam"]
[null,"23C117","    Legal Foundations of International Cooperation","A",null,null,null,1,0,3,null,null,null,1,0,3,3,"exam"]
[null,"23C118","International Trade Law","S",2,0,4,null,null,null,2,0,4,null,null,null,4,"exam"]
[null,"23C130","Human Rights and Business","S",2,0,4,null,null,null,2,0,4,null,null,null,4,"exam"]
[null,"23C123","Research and Development in the EU","S",2,0,4,null,null,null,2,0,4,null,null,null,4,"exam"]
[null,"23C119","Business writing: in-company correspondence","A",null,null,null,2,0,4,null,null,null,2,0,4,4,"exam"]
[null,"23C120","Business Informatics","A",null,null,null,2,1,5,null,null,null,2,1,5,5,"exam"]
[null,"23C124","Mathematical Statistics","A",null,null,null,2,2,5,null,null,null,2,2,5,5,"exam"]
[null,"23C125","e-Business","A",null,null,null,1,0,4,null,null,null,1,0,4,4,"exam"]
[null,"CKV","Courses completed abroad",{"$nulls":14},"exam"]
[{"$nulls":16},{"$f":"SUM(Q23:Q36)","v":55}]
[null,null,"Finance and Accounting Module"]
[null,"23C133","Green Finance and ESG Reporting","A",{"$nulls":9},2,1,5,5,"exam",null,"23B103EN"]
[null,"23C134","Analysis of Economic and Financial Data","A",{"$nulls":9},0,2,4,4,"pcm",null,"20A103EN"]
[null,"23C126","Business processes in SAP S/4HANA","S",{"$nulls":6},0,3,4,null,null,null,4,"pcm",null,"23B110"]
[null,"23C132","Risk Management in Finance","S",{"$nulls":6},2,2,5,null,null,null,5,null,null,"23B111"]
[{"$nulls":16},{"$f":"SUM(Q38:Q42)","v":18}]
[null,null,"European Economic Studies Module"]
[null,"23C129","Energy in Europe","A",null,null,null,2,0,4,null,null,null,2,0,4,4,"exam"]
[null,"23C121","Competitiveness in the EU","A",null,null,null,0,2,4,null,null,null,0,2,4,4,"pcm"]
[null,"22B107EN","European Competition, Trade and Industrial Policies","S",{"$nulls":6},2,1,5,null,null,null,5,"exam",null,"23B109"]
[null,"23C115EN","European Economic and Monetary Union","S",{"$nulls":6},2,0,4,null,null,null,4,"exam",null,"23B109"]
[{"$nulls":16},{"$f":"SUM(Q45:Q48)","v":17}]
[null,null,"Global Business Studies Module"]
[null,"23C103EN","Global Marketing","A",{"$nulls":9},2,0,4,4,"exam",null,"23B113"]
[null,"23C131","Modern China","A",{"$nulls":9},2,0,4,4,"pcm",null,"23B104EN"]
[null,"23C113EN","Services and Intellectual Properties in the Global Economy","S",2,0,4,null,null,null,2,0,4,null,null,null,4,"exam"]
[null,"23C122","Internationalisation of firms","S",{"$nulls":6},2,1,5,null,null,null,5,"exam",null,"20A108EN"]
[{"$nulls":16},{"$f":"SUM(Q51:Q54)","v":17}]
[null,null,"Required credits: 37",null,{"$f":"SUM(E23:E54)","v":10},0,20,11,7,34,21,8,51,19,11,{"$f":"SUM(P23:P54)","v":56},{"$f":"Q37+Q43+Q49+Q55","v":107}]
[null,null,"Recommended",null,0,0,0,0,0,0,12,7,31,4,1,9]
["D: Optional module ","Code","Course name","Semester","2nd semester",null,null,"1st semester",null,null,"4th semester",null,null,"3rd semester",null,null,"Credit","Assessment","Prerequisites"]
[{"$nulls":4},"Contact hours/week",null,"Credit","Contact hours/week",null,"Credit","Contact hours/week",null,"Credit","Contact hours/week",null,"Credit"]
[{"$nulls":4},"Lec","Sem",null,"Lec","Sem",null,"Lec","Sem",null,"Lec","Sem",null,null,null,"Exam","Course","Paralell"]
[null,"23D106","Freedom, Security and Justice within the EU","A",null,null,null,2,0,4,null,null,null,2,0,4,4,"exam"]
[null,"20D103","International Week","S",2,null,5,null,null,null,2,null,5,null,null,null,5,"exam"]
[null,"23D108","English for Academic Writing","S",null,2,4,{"$nulls":4},2,4,null,null,null,4,"pcm"]
[null,"10B320","Geschäftskommunikations- und Präsentationstraining auf Deutsch ","A/S",null,4,4,null,4,4,null,4,4,null,4,4,4,"pcm",null,"Kommunikáció és készségfejlesztés német nyelven vagy B2 német nyelvismeret (nyelvvizsga nem szükséges)"]
[null,"DSZV","Courses completed abroad"]
[null,null,"Required credits: 8**",null,{"$f":"SUM(E61:E65)","v":2},6,13,2,4,8,2,6,13,2,4,{"$f":"SUM(P61:P65)","v":8},{"$f":"SUM(Q61:Q65)","v":17}]
[null,null,"Recommended",null,2,0,5,0,0,0,0,0,0,0,0,0]
[null,null,"** The 8 credits of the optional module can be completed with taking up further courses form the C module"]
[]
["Thesis module","23C501EN","Thesis seminar","S",{"$nulls":10},4,5,5,"pcm"]
[null,"23C502EN","Thesis consultation","S",{"$nulls":10},8,10,10,"pcm"]
[{"$nulls":14},{"$f":"SUM(O70:O71)","v":12},{"$f":"SUM(P70:P71)","v":15},{"$f":"SUM(Q70:Q71)","v":15}]
[]
[null,null,"Total credits",null,null,null,{"$f":"G11+G20+G57+G67+G72","v":30},null,null,{"$f":"J11+J20+J57+J67+J72","v":30},null,null,{"$f":"M11+M20+M57+M67+M72","v":31},null,null,{"$f":"P11+P20+P57+P67+P72","v":29},{"$f":"SUM(E74:P74)","v":120}]
[null,null,"Contact hours / week",null,{"$f":"E11+E20+E57+E67+E72","v":12},{"$f":"F11+F20+F56+F67+F72","v":10},null,{"$f":"H11+H20+H57+H67+H72","v":12},{"$f":"I11+I20+I57+I67+I72","v":12},null,{"$f":"K11+K20+K57+K67+K72","v":12},{"$f":"L11+L20+L57+L67+L72","v":7},null,{"$f":"N11+N20+N57+N67+N72","v":6},{"$f":"O11+O20+O57+O67+O72","v":15}]
[null,null,"Contact hours / semester (lecture, seminar)",null,{"$f":"E75*15","v":180},{"$f":"F75*15","v":150},null,{"$f":"H75*15","v":180},{"$f":"I75*15","v":180},null,{"$f":"K75*15","v":180},{"$f":"L75*15","v":105},null,{"$f":"N75*15","v":90},{"$f":"O75*15","v":225}]
[null,null,"Contact hours / semester together",null,{"$f":"E76+F76","v":330},null,null,{"$f":"H76+I76","v":360},null,null,{"$f":"K76+L76","v":285},null,null,{"$f":"N76+O76","v":315}]
[]
[]
[null,null,"Programme completion and exit requirements (credits) according to Hungarian regulations"]
[null,null,"Economic and methodological module (25-40 credits)",{"$nulls":6},"credits"]
[null,null,"International economy and business basic module (30-45 credits)",{"$nulls":6},25]
[null,null,"Programme-specific module (30-45 credits)",{"$nulls":6},35]
[null,null,"Optional module (minimum 6 credits)",{"$nulls":6},37]
[null,null,"Thesis module (15 credits)",{"$nulls":6},8]
[null,null,"Together (120 credits)",{"$nulls":6},15]
[{"$nulls":9},{"$f":"SUM(J82:J86)","v":120}]
[]
[null,"pcm","practical course mark (five-grade)"]
[null,"A:","Autumn"]
[null,"S:","Spring"]